bitfinex-derivatives/quotes_BNBF0:USTF0_20250524
["timestamp","ask_amount","ask_price","bid_price","bid_amount"]
[1748053408016,1.5876055,662.72,662.31,1.305]
[1748053408212,1.09456368,662.71,662.31,1.305]
[1748053408414,1.09456368,662.7,662.31,1.305]
[1748053408614,1.09456368,662.69,662.31,1.305]
[1748053408917,1.09456368,662.68,662.31,1.305]
[1748053409221,1.09511099,662.67,662.31,1.305]
[1748053409421,1.12371235,662.8,662.31,1.305]
[1748053409618,1.58846738,662.79,662.31,1.305]
[1748053409915,1.58846738,662.78,662.31,1.305]
[1748053410117,1.58846738,662.77,662.31,1.305]
[1748053410317,1.58846738,662.76,662.31,1.305]
[1748053410522,1.58846738,662.75,662.31,1.305]
[1748053410722,1.58846738,662.74,662.31,1.305]
[1748053410923,1.58846738,662.73,662.31,1.305]
[1748053411124,1.58846738,662.72,662.31,1.305]
[1748053411325,1.09515758,662.71,662.31,1.305]
[1748053411519,1.09515758,662.7,662.31,1.305]
[1748053411722,1.09515758,662.69,662.31,1.305]
[1748053412021,1.09515758,662.68,662.31,1.305]
[1748053412221,1.09515758,662.67,662.31,1.305]
[1748053412422,1.12371235,662.75,662.31,1.305]
[1748053412722,1.5882328,662.74,662.31,1.305]
[1748053412922,1.5882328,662.73,662.31,1.305]
[1748053413118,1.5882328,662.72,662.31,1.305]
[1748053413324,1.5882328,662.71,662.31,1.305]
[1748053413525,1.09500742,662.7,662.31,1.305]
[1748053413824,1.09500742,662.69,662.31,1.305]
[1748053414125,1.12371235,662.71,662.31,1.305]
[1748053414126,1.09500742,662.68,662.31,1.305]
[1748053414419,1.09500742,662.67,662.31,1.305]
[1748053414625,1.12371235,662.71,662.31,1.305]
[1748053414826,1.09508778,662.7,662.31,1.305]
[1748053415119,1.09508778,662.69,662.31,1.305]
[1748053415325,1.12371235,662.71,662.31,1.305]
[1748053415626,1.09513605,662.7,662.31,1.305]
[1748053415819,1.09513605,662.69,662.31,1.305]
[1748053416118,1.12371235,662.71,662.31,1.305]
[1748053416326,1.09513126,662.7,662.31,1.305]
[1748053416522,1.09513126,662.69,662.31,1.305]
[1748053416722,1.12371235,662.71,662.31,1.305]
[1748053416921,1.09518356,662.7,662.31,1.305]
[1748053417127,1.09518356,662.69,662.31,1.305]
[1748053417325,1.09513078,662.68,662.31,1.305]
[1748053417525,1.12371235,662.73,662.31,1.305]
[1748053417723,1.09517775,662.72,662.31,1.305]
[1748053417923,1.09517775,662.71,662.31,1.305]
[1748053418120,1.12371235,662.73,662.31,1.305]
[1748053418325,1.09514125,662.72,662.31,1.305]
[1748053418521,1.09514125,662.71,662.31,1.305]
[1748053418725,1.09514125,662.7,662.31,1.305]
[1748053418925,1.09514125,662.69,662.31,1.305]
[1748053419122,1.09514125,662.68,662.31,1.305]
[1748053419329,1.12371235,662.73,662.31,1.305]
[1748053419529,1.58880718,662.72,662.31,1.305]
[1748053419729,1.09521012,662.71,662.31,1.305]
[1748053419929,1.09521012,662.7,662.31,1.305]
[1748053420131,1.09521012,662.69,662.31,1.305]
[1748053420330,1.09521012,662.68,662.31,1.305]
[1748053420632,1.12371235,662.7,662.31,1.305]
[1748053420825,1.09535079,662.69,662.31,1.305]
[1748053421026,1.09535079,662.68,662.31,1.305]
[1748053421229,1.12371235,662.7,662.31,1.305]
[1748053421529,1.09490229,662.69,662.31,1.305]
[1748053421827,1.09490229,662.68,662.31,1.305]
[1748053422026,1.12371235,662.7,662.31,1.305]
[1748053422225,1.09497318,662.69,662.31,1.305]
[1748053422529,1.09497318,662.68,662.31,1.305]
[1748053422726,1.09532462,662.67,662.31,1.305]
[1748053422929,1.12371235,662.7,662.31,1.305]
[1748053423129,1.09560622,662.69,662.31,1.305]
[1748053423334,1.09560622,662.68,662.31,1.305]
[1748053423528,1.09560622,662.67,662.31,1.305]
[1748053423726,1.12371235,662.7,662.31,1.305]
[1748053423931,1.09573385,662.69,662.31,1.305]
[1748053424127,1.09573385,662.68,662.31,1.305]
[1748053424427,1.09573385,662.67,662.31,1.305]
[1748053424628,1.12371235,662.7,662.31,1.305]
[1748053424831,1.09597603,662.69,662.31,1.305]
[1748053425031,1.09597603,662.68,662.31,1.305]
[1748053425233,1.09597603,662.67,662.31,1.305]
[1748053425429,1.12371235,662.7,662.31,1.305]
[1748053425634,1.09603128,662.69,662.31,1.305]
[1748053425830,1.09603128,662.68,662.31,1.305]
[1748053426031,1.09603128,662.67,662.31,1.305]
[1748053426238,1.12371235,662.7,662.31,1.305]
[1748053426436,1.09584709,662.69,662.31,1.305]
[1748053426735,1.09584709,662.68,662.31,1.305]
[1748053426931,1.09584709,662.67,662.31,1.305]
[1748053427233,1.12371235,662.69,662.31,1.305]
[1748053427430,1.09581677,662.68,662.31,1.305]
[1748053427636,1.09581677,662.67,662.31,1.305]
[1748053427934,1.12371235,662.69,662.31,1.305]
[1748053428135,1.09562555,662.68,662.31,1.305]
[1748053428331,1.09562555,662.67,662.31,1.305]
[1748053428531,1.09574021,662.66,662.31,1.305]
[1748053428732,1.12371235,662.69,662.31,1.305]
[1748053428933,1.09573422,662.68,662.31,1.305]
[1748053429136,1.09573422,662.67,662.31,1.305]
[1748053429330,1.12371235,662.69,662.31,1.305]
[1748053429331,1.09573422,662.66,662.31,1.305]
[1748053429535,1.12371235,662.69,662.31,1.305]
[1748053429833,1.09577926,662.68,662.31,1.305]
[1748053430031,1.09577926,662.67,662.31,1.305]
[1748053430233,1.09577926,662.66,662.31,1.305]
[1748053430436,1.12371235,662.69,662.31,1.305]
[1748053430638,1.09579498,662.68,662.31,1.305]
[1748053430837,1.09579498,662.67,662.31,1.305]
[1748053431034,1.09579498,662.66,662.31,1.305]
[1748053431235,1.12371235,662.69,662.31,1.305]
[1748053431437,1.09576584,662.68,662.31,1.305]
[1748053431633,1.09576584,662.67,662.31,1.305]
[1748053431835,1.09576584,662.66,662.31,1.305]
[1748053432034,1.12371235,662.69,662.31,1.305]
[1748053432236,1.09578828,662.68,662.31,1.305]
[1748053432537,1.09578828,662.67,662.31,1.305]
[1748053432735,1.09578828,662.66,662.31,1.305]
[1748053432935,1.12371235,662.69,662.31,1.305]
[1748053433139,1.09583368,662.68,662.31,1.305]
[1748053433339,1.09583368,662.67,662.31,1.305]
[1748053433540,1.09583368,662.66,662.31,1.305]
[1748053433741,1.12371235,662.69,662.31,1.305]
[1748053433940,1.09587363,662.68,662.31,1.305]
[1748053434138,1.09587363,662.67,662.31,1.305]
[1748053434338,1.09587363,662.66,662.31,1.305]
[1748053434542,1.12371235,662.65,662.31,1.305]
[1748053438246,1.12371235,662.67,662.31,1.305]
[1748053438446,1.09558786,662.66,662.31,1.305]
[1748053438646,1.09558786,662.65,662.31,1.305]
[1748053438846,1.12371235,662.67,662.31,1.305]
[1748053439047,1.09564881,662.66,662.31,1.305]
[1748053439243,1.09564881,662.65,662.31,1.305]
[1748053439447,1.12371235,662.67,662.31,1.305]
[1748053439648,1.0956714,662.66,662.31,1.305]
[1748053439849,1.0956714,662.65,662.31,1.305]
[1748053440048,1.12371235,662.67,662.31,1.305]
[1748053440250,1.09567111,662.66,662.31,1.305]
[1748053440448,1.09567111,662.65,662.31,1.305]
[1748053440650,1.12371235,662.67,662.31,1.305]
[1748053440852,1.09565486,662.66,662.31,1.305]
[1748053441048,1.12371235,662.67,662.31,1.305]
[1748053441351,1.09573988,662.66,662.31,1.305]
[1748053441549,1.12371235,662.67,662.31,1.305]
[1748053441749,1.09573613,662.66,662.31,1.305]
[1748053442050,1.12371235,662.67,662.31,1.305]
[1748053442244,1.09579326,662.66,662.31,1.305]
[1748053442459,1.12371235,662.67,662.31,1.305]
[1748053442747,1.09583555,662.66,662.31,1.305]
[1748053442951,1.12371235,662.67,662.31,1.305]
[1748053443149,1.09581077,662.66,662.31,1.305]
[1748053443352,1.12371235,662.67,662.31,1.305]
[1748053443551,1.09584162,662.66,662.31,1.305]
[1748053443751,1.12371235,662.67,662.31,1.305]
[1748053444048,1.09588447,662.66,662.31,1.305]
[1748053444253,1.12371235,662.67,662.31,1.305]
[1748053444449,1.09592756,662.66,662.31,1.305]
[1748053444651,1.12371235,662.69,662.31,1.305]
[1748053444845,1.09593223,662.68,662.31,1.305]
[1748053445047,1.09593223,662.67,662.31,1.305]
[1748053445346,1.09593223,662.66,662.31,1.305]
[1748053445549,1.12371235,662.69,662.31,1.305]
[1748053445749,1.09595872,662.68,662.31,1.305]
[1748053445953,1.09595872,662.67,662.31,1.305]
[1748053446253,1.09595872,662.66,662.31,1.305]
[1748053446453,1.12371235,662.69,662.31,1.305]
[1748053446753,1.09598521,662.68,662.31,1.305]
[1748053447051,1.09598521,662.67,662.31,1.305]
[1748053447256,1.09598521,662.66,662.31,1.305]
[1748053447548,1.12371235,662.67,662.31,1.305]
[1748053447751,1.09598412,662.66,662.31,1.305]
[1748053447951,1.12371235,662.67,662.31,1.305]
[1748053448152,1.09599501,662.66,662.31,1.305]
[1748053448447,1.12371235,662.67,662.31,1.305]
[1748053448650,1.09604104,662.66,662.31,1.305]
[1748053448854,1.12371235,662.67,662.31,1.305]
[1748053449048,1.09601174,662.66,662.31,1.305]
[1748053449249,1.12371235,662.67,662.31,1.305]
[1748053449553,1.09604509,662.66,662.31,1.305]
[1748053449753,1.12371235,662.67,662.31,1.305]
[1748053449954,1.09623754,662.66,662.31,1.305]
[1748053450155,1.12371235,662.67,662.31,1.305]
[1748053450353,1.09624194,662.66,662.31,1.305]
[1748053450554,1.09624194,662.65,662.31,1.305]
[1748053450756,1.12371235,662.67,662.31,1.305]
[1748053450952,1.09626198,662.66,662.31,1.305]
[1748053451158,1.09626198,662.65,662.31,1.305]
[1748053451351,1.12371235,662.66,662.31,1.305]
[1748053451756,1.09632168,662.65,662.31,1.305]
[1748053451957,1.12371235,662.66,662.31,1.305]
[1748053452257,1.09631461,662.65,662.31,1.305]
[1748053452456,1.12371235,662.66,662.31,1.305]
[1748053452657,1.09636759,662.65,662.31,1.305]
[1748053452957,1.12371235,662.66,662.31,1.305]
[1748053453162,1.09644403,662.65,662.31,1.305]
[1748053453358,1.12371235,662.66,662.31,1.305]
[1748053453558,1.09655316,662.65,662.31,1.305]
[1748053453759,1.12371235,662.66,662.31,1.305]
[1748053454058,1.09652783,662.65,662.31,1.305]
[1748053454258,1.12371235,662.66,662.31,1.305]
[1748053454458,1.09654825,662.65,662.31,1.305]
[1748053454656,1.12371235,662.66,662.31,1.305]
[1748053454861,1.09649608,662.65,662.31,1.305]
[1748053455061,1.12371235,662.71,662.31,1.305]
[1748053455360,1.59056869,662.7,662.31,1.305]
[1748053455560,1.59056869,662.69,662.31,1.305]
[1748053455760,1.12371235,662.71,662.31,1.305]
[1748053455761,1.09647645,662.68,662.31,1.305]
[1748053455961,1.09647645,662.67,662.31,1.305]
[1748053456261,1.09647645,662.66,662.31,1.305]
[1748053456461,1.09647645,662.65,662.31,1.305]
[1748053456662,1.12371235,662.71,662.31,1.305]
[1748053456863,1.59056696,662.7,662.31,1.305]
[1748053457062,1.59056696,662.69,662.31,1.305]
[1748053457262,1.09647523,662.68,662.31,1.305]
[1748053457465,1.09650984,662.67,662.31,1.305]
[1748053457659,1.09650984,662.66,662.31,1.305]
[1748053457858,1.09650984,662.65,662.31,1.305]
[1748053458063,1.09650984,662.64,662.31,1.305]
[1748053458262,1.12371235,662.71,662.31,1.305]
[1748053458559,2.71433658,662.7,662.31,1.305]
[1748053458758,1.59062423,662.69,662.31,1.305]
[1748053458962,1.09651339,662.68,662.31,1.305]
[1748053459162,1.09651339,662.67,662.31,1.305]
[1748053459362,1.09651339,662.66,662.31,1.305]
[1748053459560,1.09651339,662.65,662.31,1.305]
[1748053459759,1.09651339,662.64,662.31,1.305]
[1748053460058,1.12371235,662.7,662.31,1.305]
[1748053460261,1.59084163,662.69,662.31,1.305]
[1748053460464,1.59084163,662.68,662.31,1.305]
[1748053460763,1.09666413,662.67,662.31,1.305]
[1748053460959,1.09666413,662.66,662.31,1.305]
[1748053461160,1.09658524,662.65,662.31,1.305]
[1748053461465,1.09658524,662.64,662.31,1.305]
[1748053461665,1.12371235,662.7,662.31,1.305]
[1748053461866,1.59119764,662.69,662.31,1.305]
[1748053462066,1.59119764,662.68,662.31,1.305]
[1748053462369,1.09649818,662.67,662.31,1.305]
[1748053462568,1.09649818,662.66,662.31,1.305]
[1748053462765,1.09649818,662.65,662.31,1.305]
[1748053462968,1.12371235,662.7,662.31,1.305]
[1748053463268,1.5912031,662.69,662.31,1.305]
[1748053463468,1.5912031,662.68,662.31,1.305]
[1748053463664,1.0965618,662.67,662.31,1.305]
[1748053463864,1.0965618,662.66,662.31,1.305]
[1748053464067,1.0965618,662.65,662.31,1.305]
[1748053464268,1.0965618,662.64,662.31,1.305]
[1748053464470,1.12371235,662.66,662.31,1.305]
[1748053464666,1.0966238,662.65,662.31,1.305]
[1748053464866,1.09662913,662.64,662.31,1.305]
[1748053465071,1.12371235,662.66,662.31,1.305]
[1748053465370,1.09664245,662.65,662.31,1.305]
[1748053465569,1.09664245,662.64,662.31,1.305]
[1748053465766,1.12371235,662.66,662.31,1.305]
[1748053465970,1.09667766,662.65,662.31,1.305]
[1748053466170,1.09667766,662.64,662.31,1.305]
[1748053466364,1.12371235,662.66,662.31,1.305]
[1748053466564,1.09703666,662.65,662.31,1.305]
[1748053466770,1.09703666,662.64,662.31,1.305]
[1748053466970,1.12371235,662.66,662.31,1.305]
[1748053467168,1.09702606,662.65,662.31,1.305]
[1748053467366,1.09702606,662.64,662.31,1.305]
[1748053467566,1.12371235,662.66,662.31,1.305]
[1748053467767,1.09699992,662.65,662.31,1.305]
[1748053467965,1.09699992,662.64,662.31,1.305]
[1748053468169,1.12371235,662.66,662.31,1.305]
[1748053468367,1.09685793,662.65,662.31,1.305]
[1748053468566,1.09684982,662.64,662.31,1.305]
[1748053468769,1.12371235,662.66,662.31,1.305]
[1748053468971,1.09685115,662.65,662.31,1.305]
[1748053469171,1.09685115,662.64,662.31,1.305]
[1748053469372,1.12371235,662.66,662.31,1.305]
[1748053469571,1.09687583,662.65,662.31,1.305]
[1748053469767,1.09687583,662.64,662.31,1.305]
[1748053469969,1.12371235,662.67,662.31,1.305]
[1748053470273,1.09687824,662.66,662.31,1.305]
[1748053470572,1.09687824,662.65,662.31,1.305]
[1748053470768,1.09687824,662.64,662.31,1.305]
[1748053470968,1.12371235,662.67,662.31,1.305]
[1748053471169,1.09689988,662.66,662.31,1.305]
[1748053471369,1.09689988,662.65,662.31,1.305]
[1748053471574,1.09689988,662.64,662.31,1.305]
[1748053471871,1.12371235,662.67,662.31,1.305]
[1748053472072,1.09689077,662.66,662.31,1.305]
[1748053472272,1.09689077,662.65,662.31,1.305]
[1748053472471,1.09689077,662.64,662.31,1.305]
[1748053472772,1.12371235,662.67,662.31,1.305]
[1748053472970,1.09691164,662.66,662.31,1.305]
[1748053473172,1.09691164,662.65,662.31,1.305]
[1748053473373,1.09691164,662.64,662.31,1.305]
[1748053473574,1.12371235,662.67,662.31,1.305]
[1748053473778,1.12371235,662.64,662.31,1.305]
[1748053476674,1.09687492,662.63,662.31,1.305]
[1748053476879,1.12371235,662.64,662.31,1.305]
[1748053477180,1.09693816,662.63,662.31,1.305]
[1748053477379,1.12371235,662.64,662.31,1.305]
[1748053477579,1.09773178,662.63,662.31,1.305]
[1748053477775,1.12371235,662.64,662.31,1.305]
[1748053477972,1.09778495,662.63,662.31,1.305]
[1748053478172,1.12371235,662.64,662.31,1.305]
[1748053478477,1.09778804,662.63,662.31,1.305]
[1748053478675,1.12371235,662.64,662.31,1.305]
[1748053478874,1.09647025,662.63,662.31,1.305]
[1748053479076,1.12371235,662.64,662.31,1.305]
[1748053479276,1.09646295,662.63,662.31,1.305]
[1748053479477,1.12371235,662.64,662.31,1.305]
[1748053479674,1.09642653,662.63,662.31,1.305]
[1748053479880,1.12371235,662.64,662.31,1.305]
[1748053480175,1.09643387,662.63,662.31,1.305]
[1748053480378,1.12371235,662.64,662.31,1.305]
[1748053480575,1.09644257,662.63,662.31,1.305]
[1748053480874,1.12371235,662.65,662.31,1.305]
[1748053481077,1.09643235,662.64,662.31,1.305]
[1748053481280,1.09643235,662.63,662.31,1.305]
[1748053481580,1.12371235,662.65,662.31,1.305]
[1748053481781,1.09644548,662.64,662.31,1.305]
[1748053482080,1.09644548,662.63,662.31,1.305]
[1748053482381,1.12371235,662.65,662.31,1.305]
[1748053482675,1.09639936,662.64,662.31,1.305]
[1748053482876,1.09639936,662.63,662.31,1.305]
[1748053483077,1.09639936,662.62,662.31,1.305]
[1748053483276,1.09639936,662.61,662.31,1.305]
[1748053483580,1.09632004,662.6,662.31,1.305]
[1748053483780,1.12371235,662.65,662.31,1.305]
[1748053483980,1.59149542,662.64,662.31,1.305]
[1748053484180,1.09630886,662.63,662.31,1.305]
[1748053484376,1.09630886,662.62,662.31,1.305]
[1748053484575,1.09630886,662.61,662.31,1.305]
[1748053484776,1.09630886,662.6,662.31,1.305]
[1748053484976,1.12371235,662.64,662.31,1.305]
[1748053485181,1.09623075,662.63,662.31,1.305]
[1748053485481,1.09623075,662.62,662.31,1.305]
[1748053485780,1.09623075,662.61,662.31,1.305]
[1748053485980,1.09623075,662.6,662.31,1.305]
[1748053486177,1.12371235,662.64,662.31,1.305]
[1748053486380,1.09612717,662.63,662.31,1.305]
[1748053486580,1.09612717,662.62,662.31,1.305]
[1748053486880,1.09612717,662.61,662.31,1.305]
[1748053487081,1.09612717,662.6,662.31,1.305]
[1748053487282,1.12371235,662.64,662.31,1.305]
[1748053487481,1.09607099,662.63,662.31,1.305]
[1748053487681,1.09607099,662.62,662.31,1.305]
[1748053487983,1.09607099,662.61,662.31,1.305]
[1748053488283,1.12371235,662.65,662.31,1.305]
[1748053488484,1.09606901,662.64,662.31,1.305]
[1748053488676,1.12371235,662.65,662.31,1.305]
[1748053488677,1.09606901,662.63,662.31,1.305]
[1748053488878,1.09606901,662.62,662.31,1.305]
[1748053489180,1.09606901,662.61,662.31,1.305]
[1748053489479,1.12371235,662.65,662.31,1.305]
[1748053489678,1.09574647,662.64,662.31,1.305]
[1748053489881,1.09574647,662.63,662.31,1.305]
[1748053490079,1.09574647,662.62,662.31,1.305]
[1748053490281,1.09574647,662.61,662.31,1.305]
[1748053490481,1.12371235,662.65,662.31,1.305]
[1748053490684,1.0956969,662.64,662.31,1.305]
[1748053490880,1.0956969,662.63,662.31,1.305]
[1748053491081,1.0956969,662.62,662.31,1.305]
[1748053491281,1.0956969,662.61,662.31,1.305]
[1748053491485,1.12371235,662.67,662.31,1.305]
[1748053491684,1.59042175,662.66,662.31,1.305]
[1748053491885,1.59042175,662.65,662.31,1.305]
[1748053492086,1.09548997,662.64,662.31,1.305]
[1748053492281,1.09548997,662.63,662.31,1.305]
[1748053492484,1.09548997,662.62,662.31,1.305]
[1748053492682,1.09548997,662.61,662.31,1.305]
[1748053492886,1.12371235,662.67,662.31,1.305]
[1748053494992,1.12371235,663.16,662.31,2.40006973]
[1748053495194,1.58795665,663.15,662.31,2.40006973]
[1748053495394,1.58795665,663.14,662.31,2.40006973]
[1748053495594,1.58795665,663.13,662.31,2.40006973]
[1748053495794,1.58723871,663.12,662.31,2.40006973]
[1748053495995,1.58723871,663.11,662.31,2.40006973]
[1748053496191,1.58723871,663.1,662.31,2.40006973]
[1748053496390,1.09332481,663.09,662.31,2.40006973]
[1748053496594,1.09332481,663.08,662.31,2.40006973]
[1748053496791,1.09332481,663.07,662.31,2.40006973]
[1748053496994,1.09332481,663.06,662.31,2.40006973]
[1748053497294,1.12371235,663.16,662.31,2.40006973]
[1748053497494,1.5860287,663.15,662.31,2.40006973]
[1748053497694,1.5859096,663.14,662.31,2.40006973]
[1748053497895,1.5859096,663.13,662.31,2.40006973]
[1748053498194,1.5859096,663.12,662.31,2.40006973]
[1748053498390,1.5859096,663.11,662.31,1.305]
[1748053498596,1.5859096,663.1,662.31,1.305]
[1748053498794,1.5859096,663.09,662.31,1.305]
[1748053498990,1.58573365,663.08,662.31,1.305]
[1748053499196,1.09245914,663.07,662.31,1.305]
[1748053499496,1.09245914,663.06,662.31,1.305]
[1748053499690,1.09245914,663.05,662.31,1.305]
[1748053499893,1.12371235,663.14,662.31,1.305]
[1748053500093,1.58513239,663.13,662.31,1.305]
[1748053500292,1.58513239,663.12,662.31,1.305]
[1748053500491,1.58513239,663.11,662.31,1.305]
[1748053500695,1.58513239,663.1,662.31,1.305]
[1748053500895,1.58513239,663.09,662.31,1.305]
[1748053501097,1.09195125,663.08,662.31,1.305]
[1748053501397,1.09195125,663.07,662.31,1.305]
[1748053501595,1.09195125,663.06,662.31,1.305]
[1748053501793,1.09174266,663.05,662.31,1.305]
[1748053501994,1.12371235,663.14,662.31,1.305]
[1748053502200,1.58482326,663.13,662.31,1.305]
[1748053502498,1.58455258,663.12,662.31,1.305]
[1748053502697,1.58455258,663.11,662.31,1.305]
[1748053502896,1.58455258,663.1,662.31,1.305]
[1748053503095,1.09155155,663.09,662.31,1.305]
[1748053503296,1.09155155,663.08,662.31,1.305]
[1748053503494,1.09155155,663.07,662.31,1.305]
[1748053503797,1.12371235,663.14,662.31,1.305]
[1748053503998,1.58426992,663.13,662.31,1.305]
[1748053504198,1.12371235,663.14,662.31,1.305]
[1748053504199,1.58426992,663.12,662.31,1.305]
[1748053504399,1.58418502,663.11,662.31,1.305]
[1748053504602,1.09129868,663.1,662.31,1.305]
[1748053504797,1.09129868,663.09,662.31,1.305]
[1748053504999,1.09129868,663.08,662.31,1.305]
[1748053505202,1.09129868,663.07,662.31,1.305]
[1748053505403,1.12371235,663.14,662.31,1.305]
[1748053505603,1.58338817,663.13,662.31,1.305]
[1748053505799,1.58338817,663.12,662.31,1.305]
[1748053506005,1.09070998,663.11,662.31,1.305]
[1748053506206,1.58355568,663.1,662.31,1.305]
[1748053506400,1.09087508,663.09,662.31,1.305]
[1748053506603,1.09087508,663.08,662.31,1.305]
[1748053506806,1.09087508,663.07,662.31,1.305]
[1748053507006,1.12371235,663.14,662.31,1.305]
[1748053507207,1.58348292,663.13,662.31,1.305]
[1748053507407,1.58348292,663.12,662.31,1.305]
[1748053507607,1.58348292,663.11,662.31,1.305]
[1748053507807,1.09082534,663.1,662.31,1.305]
[1748053508005,1.09070035,663.09,662.31,1.305]
[1748053508200,1.09070035,663.08,662.31,1.305]
[1748053508401,1.12371235,663.14,662.31,1.305]
[1748053508599,1.12371235,663.1,662.34,1.09506973]
[1748053508899,1.09057596,663.09,662.34,1.09506973]
[1748053509707,1.09052093,663.08,662.34,1.09506973]
[1748053509903,1.12371235,663.1,662.34,1.09506973]
[1748053510105,1.09052546,663.09,662.34,1.09506973]
[1748053510305,1.09052546,663.08,662.34,1.09506973]
[1748053510503,1.12371235,663.1,662.34,1.09506973]
[1748053510702,1.09046845,663.09,662.34,1.09506973]
[1748053510906,1.12371235,663.1,662.34,1.09506973]
[1748053511102,1.09047437,663.09,662.34,1.09506973]
[1748053511303,1.12371235,663.1,662.34,1.09506973]
[1748053511505,1.09038325,663.09,662.34,1.09506973]
[1748053511709,1.12371235,663.11,662.32,1.09506973]
[1748053511906,1.09037621,663.1,662.32,1.09506973]
[1748053512105,1.09037621,663.09,662.33,1.485]
[1748053512304,1.12371235,663.11,662.33,1.485]
[1748053512508,1.09026729,663.1,662.33,1.485]
[1748053512707,1.09026729,663.09,662.33,1.485]
[1748053512904,1.12371235,663.11,662.33,1.485]
[1748053513105,1.09039044,663.1,662.33,1.485]
[1748053513303,1.09039044,663.09,662.33,1.485]
[1748053513603,1.12371235,663.11,662.33,1.485]
[1748053513804,1.0901311,663.1,662.33,1.485]
[1748053514108,1.0901311,663.09,662.33,1.485]
[1748053514307,1.12371235,663.11,662.33,1.485]
[1748053514509,1.09004431,663.1,662.33,1.485]
[1748053514703,1.09004431,663.09,662.33,1.485]
[1748053514909,1.12371235,663.11,662.33,1.485]
[1748053515205,1.09003406,663.1,662.33,1.485]
[1748053515407,1.09003406,663.09,662.33,1.485]
[1748053515613,1.12371235,663.11,662.33,1.485]
[1748053515912,1.08995179,663.1,662.33,1.485]
[1748053516113,1.08995179,663.09,662.33,1.485]
[1748053516312,1.08995179,663.08,662.33,1.485]
[1748053516509,1.08995179,663.07,662.33,1.485]
[1748053516808,1.12371235,663.12,662.33,1.485]
[1748053517011,1.08990884,663.11,662.33,1.485]
[1748053517208,1.08990884,663.1,662.33,1.485]
[1748053517412,1.08990884,663.09,662.33,1.485]
[1748053517613,1.08990884,663.08,662.33,1.485]
[1748053517814,1.12371235,663.12,662.33,1.485]
[1748053518012,1.08986237,663.11,662.33,1.485]
[1748053518210,1.08986237,663.1,662.33,1.485]
[1748053518509,1.08986237,663.09,662.33,1.485]
[1748053518815,1.08986237,663.08,662.33,1.485]
[1748053519015,1.08980359,663.07,662.33,1.485]
[1748053519212,1.12371235,663.13,662.33,1.485]
[1748053519409,1.58168403,663.12,662.33,1.485]
[1748053519614,1.08970327,663.11,662.33,1.485]
[1748053519812,1.08970327,663.1,662.33,1.485]
[1748053520015,1.08970327,663.09,662.33,1.485]
[1748053520213,1.12371235,663.13,662.33,1.485]
[1748053520214,1.0896525,663.08,662.33,1.485]
[1748053520416,1.12371235,663.13,662.33,1.485]
[1748053520615,1.58151774,663.12,662.33,1.485]
[1748053520816,1.08958887,663.11,662.33,1.485]
[1748053521015,1.08958887,663.1,662.33,1.485]
[1748053521216,1.08958887,663.09,662.33,1.485]
[1748053521516,1.08958887,663.08,662.33,1.485]
[1748053521815,1.12371235,663.1,662.33,1.485]
[1748053522010,1.0895284,663.09,662.33,1.485]
[1748053522214,1.0895284,663.08,662.33,1.485]
[1748053522414,1.0895284,663.07,662.33,1.485]
[1748053522712,1.12371235,663.1,662.33,1.485]
[1748053522916,1.08944569,663.09,662.33,1.485]
[1748053523115,1.08944569,663.08,662.33,1.485]
[1748053523311,1.08944569,663.07,662.33,1.485]
[1748053523518,1.12371235,663.1,662.33,1.485]
[1748053523820,1.0894325,663.09,662.33,1.485]